[Event "MČR v bleskovém šachu družstev 2019"]
[Site "Teplice, Czech Republic"]
[Date "2019.09.14"]
[Round "12.21"]
[White "Formanek, Martin"]
[Black "Bach, Markus"]
[Result "1/2-1/2"]
[TimeControl "3 mim. + 2 s"]
[WhiteFideId "316768"]
[BlackFideId "24603376"]
[WhiteElo "2230"]
[BlackElo "2259"]

1. e4 {[%clk 00:03:03]} {[%emt 00:00:01]} c6 {[%clk 00:03:00]} {[%emt
00:00:04]} 2. d4 {[%clk 00:02:59]} {[%emt 00:00:06]} d5 {[%clk 00:03:00]}
{[%emt 00:00:02]} 3. e5 {[%clk 00:03:00]} c5 {[%clk 00:03:01]} {[%emt
00:00:02]} 4. dxc5 {[%clk 00:02:59]} {[%emt 00:00:03]} Nc6 {[%clk 00:03:02]} 5.
Bb5 {[%clk 00:02:54]} {[%emt 00:00:08]} e6 {[%clk 00:02:59]} {[%emt 00:00:05]}
6. Be3 {[%clk 00:02:54]} {[%emt 00:00:02]} Qa5+ {[%clk 00:02:57]} {[%emt
00:00:04]} 7. Nc3 {[%clk 00:02:53]} {[%emt 00:00:03]} a6 {[%clk 00:02:58]}
{[%emt 00:00:01]} 8. Bxc6+ {[%clk 00:02:52]} {[%emt 00:00:02]} bxc6 {[%clk
00:02:59]} {[%emt 00:00:02]} 9. a3 {[%clk 00:02:53]} Rb8 {[%clk 00:02:58]}
{[%emt 00:00:04]} 10. b4 {[%clk 00:02:54]} {[%emt 00:00:01]} Qc7 {[%clk
00:02:59]} {[%emt 00:00:01]} 11. f4 {[%clk 00:02:54]} {[%emt 00:00:02]} h5
{[%clk 00:02:59]} {[%emt 00:00:03]} 12. Nf3 {[%clk 00:02:54]} {[%emt 00:00:01]}
Ne7 {[%clk 00:03:00]} 13. Nd4 {[%clk 00:02:55]} {[%emt 00:00:01]} Nf5 {[%clk
00:02:54]} {[%emt 00:00:08]} 14. Nxf5 {[%clk 00:02:54]} {[%emt 00:00:03]} exf5
{[%clk 00:02:55]} {[%emt 00:00:02]} 15. O-O {[%clk 00:02:45]} {[%emt 00:00:10]}
a5 {[%clk 00:02:53]} {[%emt 00:00:04]} 16. Rb1 {[%clk 00:02:37]} {[%emt
00:00:10]} axb4 17. axb4 {[%clk 00:02:37]} Ba6 {[%clk 00:02:53]} {[%emt
00:00:02]} 18. Re1 {[%clk 00:02:35]} {[%emt 00:00:04]} Be7 {[%clk 00:02:50]}
{[%emt 00:00:05]} 19. Ne2 {[%clk 00:02:33]} {[%emt 00:00:03]} g6 {[%clk
00:02:45]} {[%emt 00:00:08]} 20. Nd4 {[%clk 00:02:33]} {[%emt 00:00:02]} Bc4
{[%clk 00:02:41]} {[%emt 00:00:06]} 21. Qf3 {[%clk 00:02:30]} {[%emt 00:00:05]}
O-O {[%clk 00:02:31]} {[%emt 00:00:12]} 22. Bd2 {[%clk 00:02:29]} {[%emt
00:00:03]} Qb7 {[%clk 00:02:24]} {[%emt 00:00:09]} 23. Qg3 {[%clk 00:02:12]}
{[%emt 00:00:19]} Kh7 {[%clk 00:02:24]} {[%emt 00:00:02]} 24. Ra1 {[%clk
00:02:01]} {[%emt 00:00:13]} Ra8 {[%clk 00:02:25]} {[%emt 00:00:01]} 25. Bc3
{[%clk 00:01:56]} {[%emt 00:00:07]} Rxa1 {[%clk 00:02:05]} {[%emt 00:00:22]} 26.
Rxa1 {[%clk 00:01:57]} {[%emt 00:00:01]} Ra8 {[%clk 00:02:06]} 27. Qe1 {[%clk
00:01:58]} {[%emt 00:00:01]} Ra6 {[%clk 00:01:21]} {[%emt 00:00:47]} 28. Rxa6
Qxa6 {[%clk 00:01:21]} 29. Qa1 {[%clk 00:01:52]} Qb7 {[%clk 00:00:52]} {[%emt
00:00:31]} 30. Qa5 {[%clk 00:01:49]} {[%emt 00:00:05]} Qd7 {[%clk 00:00:46]}
{[%emt 00:00:09]} 31. Qb6 {[%clk 00:01:46]} {[%emt 00:00:04]} Bd8 {[%clk
00:00:46]} {[%emt 00:00:02]} 32. Qxc6 {[%clk 00:01:47]} {[%emt 00:00:01]} Qa7
{[%clk 00:00:45]} {[%emt 00:00:03]} 33. Qe8 {[%clk 00:01:39]} {[%emt 00:00:10]}
Bh4 {[%clk 00:00:45]} {[%emt 00:00:02]} 34. g3 {[%clk 00:01:37]} {[%emt
00:00:04]} Qe7 {[%clk 00:00:42]} {[%emt 00:00:05]} 35. Qc6 {[%clk 00:01:31]}
{[%emt 00:00:07]} Qa7 {[%emt 00:00:10]} 36. Qe8 {[%clk 00:01:16]} {[%emt
00:00:16]} Qa2 {[%clk 00:00:33]} {[%emt 00:00:05]} 37. Qxf7+ {[%emt 00:00:02]}
Kh6 38. Qf8+ {[%clk 00:00:57]} {[%emt 00:00:22]} Kh7 {[%clk 00:00:36]} 39. Qf7+
{[%clk 00:00:54]} {[%emt 00:00:05]} Kh6 {[%clk 00:00:37]} {[%emt 00:00:01]} 40.
Nxf5+ {[%clk 00:00:47]} {[%emt 00:00:09]} gxf5 {[%clk 00:00:36]} {[%emt
00:00:03]} 41. Qe6+ {[%clk 00:00:45]} {[%emt 00:00:04]} Kg7 {[%clk 00:00:35]}
{[%emt 00:00:02]} 42. Qd7+ {[%clk 00:00:45]} {[%emt 00:00:03]} Kh6 {[%clk
00:00:33]} {[%emt 00:00:01]} 43. Qe6+ {[%clk 00:00:45]} {[%emt 00:00:04]} Kg7
{[%clk 00:00:34]} 44. gxh4 {[%clk 00:00:41]} {[%emt 00:00:07]} Qb1+ {[%clk
00:00:35]} {[%emt 00:00:01]} 45. Kf2 {[%clk 00:00:40]} {[%emt 00:00:03]} Qf1+
{[%clk 00:00:36]} {[%emt 00:00:02]} 46. Kg3 {[%clk 00:00:38]} {[%emt 00:00:03]}
Qg1+ {[%clk 00:00:34]} {[%emt 00:00:04]} 47. Kf3 {[%clk 00:00:39]} {[%emt
00:00:02]} Qf1+ {[%clk 00:00:28]} {[%emt 00:00:07]} 48. Kg3 {[%clk 00:00:39]}
{[%emt 00:00:02]} Qg1+ {[%clk 00:00:22]} {[%emt 00:00:07]} 49. Kf3 {[%clk
00:00:41]} Qf1+ {[%clk 00:00:13]} {[%emt 00:00:12]} 50. Kg3 1/2-1/2

[Event "MČR v bleskovém šachu družstev 2019"]
[Site "Teplice, Czech Republic"]
[Date "2019.09.14"]
[Round "12.22"]
[White "Buchcar, Tomas"]
[Black "Dvorak, Jan"]
[Result "0-1"]
[TimeControl "3 mim. + 2 s"]
[WhiteFideId "328421"]
[BlackFideId "314870"]
[WhiteElo "2145"]
[BlackElo "2229"]

1. c4 {[%clk 00:03:02]} Nf6 {[%clk 00:03:01]} {[%emt 00:00:04]} 2. Nf3 {[%clk
00:03:00]} {[%emt 00:00:04]} c5 {[%emt 00:00:04]} 3. g3 {[%emt 00:00:01]} Nc6
{[%clk 00:02:56]} {[%emt 00:00:04]} 4. Bg2 {[%clk 00:03:02]} {[%emt 00:00:01]}
d5 {[%clk 00:02:56]} {[%emt 00:00:03]} 5. cxd5 {[%emt 00:00:03]} Nxd5 6. O-O
{[%clk 00:03:01]} {[%emt 00:00:03]} e5 {[%clk 00:02:57]} 7. d3 {[%clk
00:02:59]} {[%emt 00:00:05]} Be7 {[%clk 00:02:55]} {[%emt 00:00:03]} 8. a3
{[%clk 00:02:59]} {[%emt 00:00:03]} O-O {[%clk 00:02:53]} {[%emt 00:00:04]} 9.
Nc3 {[%clk 00:02:51]} {[%emt 00:00:10]} Nc7 {[%clk 00:02:49]} {[%emt 00:00:05]}
10. Be3 {[%clk 00:02:44]} {[%emt 00:00:10]} Be6 {[%clk 00:02:46]} {[%emt
00:00:05]} 11. Rc1 {[%clk 00:02:41]} {[%emt 00:00:05]} Rc8 {[%clk 00:02:40]}
{[%emt 00:00:08]} 12. Ne4 {[%clk 00:02:26]} {[%emt 00:00:17]} b6 {[%clk
00:02:38]} {[%emt 00:00:04]} 13. b4 {[%clk 00:02:12]} {[%emt 00:00:16]} Nd5
{[%emt 00:00:36]} 14. bxc5 {[%emt 00:00:05]} Nxe3 {[%emt 00:00:02]} 15. fxe3
{[%emt 00:00:02]} bxc5 {[%clk 00:01:53]} {[%emt 00:00:12]} 16. Nxc5 {[%clk
00:02:07]} {[%emt 00:00:04]} Bg4 {[%clk 00:01:46]} {[%emt 00:00:09]} 17. Qa4
{[%clk 00:01:56]} {[%emt 00:00:13]} h5 {[%clk 00:01:18]} {[%emt 00:00:30]} 18.
Rc4 {[%clk 00:01:28]} {[%emt 00:00:31]} Qb6 {[%clk 00:01:09]} {[%emt 00:00:11]}
19. Rfc1 {[%clk 00:00:55]} {[%emt 00:00:34]} Na5 {[%clk 00:00:52]} {[%emt
00:00:19]} 20. Rb4 {[%clk 00:00:46]} {[%emt 00:00:12]} Qh6 {[%clk 00:00:53]} 21.
Re4 {[%clk 00:00:23]} {[%emt 00:00:24]} Bxc5 {[%clk 00:00:50]} {[%emt
00:00:05]} 22. Rf1 {[%clk 00:00:11]} {[%emt 00:00:15]} Bxe3+ {[%emt 00:00:06]}
23. Kh1 Nc6 {[%clk 00:00:46]} {[%emt 00:00:02]} 24. h3 {[%clk 00:00:11]} {[%emt
00:00:04]} Bf5 {[%emt 00:00:10]} 25. Rc4 {[%emt 00:00:03]} Bd7 {[%clk
00:00:35]} {[%emt 00:00:02]} 26. Qa6 Bb6 {[%emt 00:00:06]} 27. Nh4 {[%clk
00:00:09]} {[%emt 00:00:05]} Qg5 {[%emt 00:00:05]} 28. Kh2 {[%emt 00:00:03]}
Nd4 {[%clk 00:00:26]} {[%emt 00:00:05]} 29. Qb7 {[%clk 00:00:04]} {[%emt
00:00:07]} Rxc4 {[%emt 00:00:03]} 30. dxc4 Bc8 {[%clk 00:00:19]} {[%emt
00:00:03]} 0-1

[Event "MČR v bleskovém šachu družstev 2019"]
[Site "Teplice, Czech Republic"]
[Date "2019.09.14"]
[Round "12.23"]
[White "Kopta, Pavel"]
[Black "Tresnak, Filip"]
[Result "1-0"]
[TimeControl "3 mim. + 2 s"]
[WhiteTitle "FM"]
[WhiteFideId "309109"]
[BlackFideId "333905"]
[WhiteElo "2234"]
[BlackElo "1931"]

1. d4 {[%clk 00:03:03]} Nf6 {[%clk 00:03:01]} {[%emt 00:00:03]} 2. c4 {[%clk
00:03:03]} {[%emt 00:00:01]} c5 {[%clk 00:03:02]} {[%emt 00:00:01]} 3. d5
{[%clk 00:03:04]} {[%emt 00:00:02]} e5 {[%clk 00:03:02]} {[%emt 00:00:01]} 4.
Nc3 {[%clk 00:03:03]} {[%emt 00:00:03]} d6 {[%clk 00:03:03]} 5. e4 {[%clk
00:02:58]} {[%emt 00:00:07]} g6 {[%clk 00:03:03]} {[%emt 00:00:02]} 6. Be2
{[%clk 00:02:46]} {[%emt 00:00:13]} Bg7 {[%clk 00:03:04]} {[%emt 00:00:02]} 7.
Nf3 {[%clk 00:02:47]} {[%emt 00:00:01]} O-O {[%clk 00:03:04]} {[%emt 00:00:02]}
8. O-O {[%clk 00:02:46]} {[%emt 00:00:03]} Nbd7 {[%clk 00:02:59]} {[%emt
00:00:07]} 9. Rb1 {[%clk 00:02:37]} {[%emt 00:00:11]} h6 {[%clk 00:02:49]}
{[%emt 00:00:12]} 10. a3 {[%clk 00:02:37]} {[%emt 00:00:02]} Ne8 {[%clk
00:02:48]} {[%emt 00:00:03]} 11. Ne1 {[%clk 00:02:01]} {[%emt 00:00:38]} f5
{[%clk 00:02:47]} {[%emt 00:00:04]} 12. f4 {[%clk 00:01:50]} {[%emt 00:00:12]}
Nef6 {[%clk 00:02:15]} {[%emt 00:00:33]} 13. exf5 {[%clk 00:01:48]} {[%emt
00:00:05]} gxf5 {[%clk 00:02:16]} {[%emt 00:00:01]} 14. fxe5 {[%clk 00:01:39]}
{[%emt 00:00:12]} Nxe5 {[%clk 00:02:16]} {[%emt 00:00:01]} 15. Nf3 {[%clk
00:01:34]} {[%emt 00:00:08]} Nfd7 {[%clk 00:01:56]} {[%emt 00:00:21]} 16. Bf4
{[%clk 00:01:31]} {[%emt 00:00:06]} Nxf3+ {[%clk 00:01:54]} {[%emt 00:00:04]}
17. Rxf3 {[%clk 00:01:26]} {[%emt 00:00:06]} Ne5 {[%clk 00:01:55]} {[%emt
00:00:02]} 18. Rg3 {[%clk 00:01:26]} {[%emt 00:00:02]} Kh7 {[%clk 00:01:54]}
{[%emt 00:00:03]} 19. Qd2 {[%clk 00:01:22]} {[%emt 00:00:05]} Ng6 {[%clk
00:01:39]} {[%emt 00:00:18]} 20. Rf3 {[%clk 00:00:53]} {[%emt 00:00:30]} Nxf4
{[%clk 00:01:21]} {[%emt 00:00:20]} 21. Rxf4 {[%clk 00:00:51]} {[%emt
00:00:05]} Be5 {[%clk 00:01:17]} {[%emt 00:00:05]} 22. Rf3 {[%clk 00:00:47]}
{[%emt 00:00:06]} f4 {[%clk 00:01:18]} {[%emt 00:00:01]} 23. Bd3+ {[%clk
00:00:48]} {[%emt 00:00:02]} Kh8 {[%clk 00:01:11]} {[%emt 00:00:08]} 24. Ne4
{[%clk 00:00:44]} {[%emt 00:00:06]} Bg4 {[%clk 00:01:07]} {[%emt 00:00:06]} 25.
Rff1 {[%clk 00:00:45]} {[%emt 00:00:02]} Bd4+ {[%clk 00:01:06]} {[%emt
00:00:03]} 26. Kh1 {[%clk 00:00:45]} {[%emt 00:00:02]} Be5 {[%clk 00:00:48]}
{[%emt 00:00:20]} 27. h3 {[%clk 00:00:43]} {[%emt 00:00:04]} Qh4 {[%clk
00:00:46]} {[%emt 00:00:03]} 28. Qf2 {[%clk 00:00:44]} {[%emt 00:00:02]} Qh5
{[%clk 00:00:41]} {[%emt 00:00:07]} 29. Nd2 {[%clk 00:00:33]} {[%emt 00:00:13]}
f3 {[%clk 00:00:30]} {[%emt 00:00:13]} 30. Nxf3 {[%clk 00:00:23]} {[%emt
00:00:11]} Bxh3 {[%clk 00:00:30]} {[%emt 00:00:02]} 31. g3 {[%clk 00:00:16]}
{[%emt 00:00:09]} Rxf3 {[%clk 00:00:21]} {[%emt 00:00:11]} 32. Qxf3 {[%clk
00:00:16]} {[%emt 00:00:03]} Bg4+ {[%clk 00:00:22]} {[%emt 00:00:01]} 33. Kg2
{[%clk 00:00:16]} {[%emt 00:00:01]} Bxf3+ {[%clk 00:00:23]} {[%emt 00:00:02]}
34. Rxf3 {[%clk 00:00:17]} Rg8 {[%clk 00:00:22]} {[%emt 00:00:03]} 35. Rbf1
{[%clk 00:00:18]} {[%emt 00:00:01]} Qg5 {[%clk 00:00:17]} {[%emt 00:00:07]} 36.
Rh1 {[%clk 00:00:16]} {[%emt 00:00:03]} Qd2+ {[%clk 00:00:14]} {[%emt
00:00:05]} 37. Kf1 {[%clk 00:00:14]} {[%emt 00:00:04]} Qxb2 {[%clk 00:00:12]}
{[%emt 00:00:04]} 38. Rxh6+ {[%clk 00:00:12]} {[%emt 00:00:04]} Kg7 {[%clk
00:00:08]} {[%emt 00:00:06]} 39. Rh7# {[%clk 00:00:14]} 1-0

[Event "MČR v bleskovém šachu družstev 2019"]
[Site "Teplice, Czech Republic"]
[Date "2019.09.14"]
[Round "12.24"]
[White "Prudek, Jiri"]
[Black "Routner, Jakub"]
[Result "1-0"]
[TimeControl "3 mim. + 2 s"]
[WhiteFideId "327310"]
[BlackFideId "322245"]
[WhiteElo "1962"]
[BlackElo "2138"]

1. e4 {[%clk 00:03:03]} c5 {[%clk 00:03:01]} {[%emt 00:00:03]} 2. Nf3 {[%clk
00:03:02]} {[%emt 00:00:03]} e6 {[%clk 00:03:02]} 3. d4 {[%clk 00:03:03]}
{[%emt 00:00:01]} cxd4 {[%clk 00:03:03]} 4. Nxd4 {[%clk 00:03:04]} a6 {[%clk
00:03:04]} 5. c4 {[%clk 00:03:05]} {[%emt 00:00:02]} Qc7 {[%clk 00:03:04]}
{[%emt 00:00:02]} 6. Nc3 {[%clk 00:03:05]} {[%emt 00:00:02]} Nf6 {[%clk
00:03:04]} {[%emt 00:00:02]} 7. Be2 {[%clk 00:03:02]} {[%emt 00:00:04]} d6
{[%clk 00:03:01]} {[%emt 00:00:05]} 8. O-O {[%clk 00:03:03]} {[%emt 00:00:01]}
Be7 {[%clk 00:03:02]} 9. Be3 {[%clk 00:02:56]} {[%emt 00:00:10]} Nbd7 {[%clk
00:03:03]} {[%emt 00:00:02]} 10. h3 {[%clk 00:02:54]} {[%emt 00:00:04]} b6
{[%clk 00:03:02]} {[%emt 00:00:03]} 11. Rc1 {[%clk 00:02:53]} {[%emt 00:00:03]}
Bb7 {[%clk 00:03:02]} {[%emt 00:00:02]} 12. Bf3 {[%clk 00:02:45]} {[%emt
00:00:09]} Ne5 {[%clk 00:02:55]} {[%emt 00:00:09]} 13. b3 {[%clk 00:02:41]}
{[%emt 00:00:07]} O-O {[%clk 00:02:53]} {[%emt 00:00:03]} 14. Qc2 {[%clk
00:01:40]} {[%emt 00:01:01]} Nxf3+ {[%clk 00:02:53]} {[%emt 00:00:04]} 15. Nxf3
{[%clk 00:01:40]} {[%emt 00:00:02]} Rac8 {[%clk 00:02:51]} {[%emt 00:00:04]} 16.
Qb1 {[%clk 00:01:39]} {[%emt 00:00:03]} Rfd8 {[%clk 00:02:51]} {[%emt
00:00:02]} 17. Nd4 {[%clk 00:01:30]} {[%emt 00:00:11]} Nd7 {[%clk 00:02:28]}
{[%emt 00:00:26]} 18. f4 {[%clk 00:01:18]} {[%emt 00:00:14]} Nc5 {[%clk
00:02:02]} {[%emt 00:00:28]} 19. f5 {[%clk 00:01:16]} {[%emt 00:00:04]} e5
{[%clk 00:01:53]} {[%emt 00:00:10]} 20. Nf3 {[%clk 00:01:12]} {[%emt 00:00:07]}
Qb8 {[%clk 00:01:42]} {[%emt 00:00:13]} 21. Nd5 {[%clk 00:01:05]} {[%emt
00:00:09]} Bxd5 {[%clk 00:01:41]} {[%emt 00:00:03]} 22. cxd5 {[%clk 00:01:05]}
{[%emt 00:00:02]} Rd7 {[%clk 00:01:28]} {[%emt 00:00:15]} 23. Bxc5 {[%clk
00:00:58]} {[%emt 00:00:09]} bxc5 {[%clk 00:01:24]} {[%emt 00:00:06]} 24. Rc4
{[%clk 00:00:54]} {[%emt 00:00:06]} Rb7 {[%clk 00:01:20]} {[%emt 00:00:05]} 25.
Qc1 {[%clk 00:00:48]} {[%emt 00:00:08]} Rb4 {[%clk 00:01:19]} {[%emt 00:00:03]}
26. Qc2 {[%clk 00:00:30]} {[%emt 00:00:20]} Rc7 {[%clk 00:01:19]} {[%emt
00:00:03]} 27. g4 {[%clk 00:00:24]} {[%emt 00:00:08]} Rxc4 {[%clk 00:01:16]}
{[%emt 00:00:04]} 28. Qxc4 {[%clk 00:00:25]} {[%emt 00:00:02]} Qb5 {[%clk
00:01:16]} {[%emt 00:00:02]} 29. Rc1 {[%clk 00:00:21]} {[%emt 00:00:06]} Rb7
{[%clk 00:01:16]} {[%emt 00:00:02]} 30. g5 {[%clk 00:00:17]} {[%emt 00:00:06]}
f6 {[%clk 00:01:09]} {[%emt 00:00:09]} 31. h4 {[%clk 00:00:17]} {[%emt
00:00:02]} Rb6 {[%clk 00:01:02]} {[%emt 00:00:08]} 32. Kg2 {[%clk 00:00:12]}
{[%emt 00:00:08]} Qb4 {[%clk 00:01:02]} {[%emt 00:00:01]} 33. Qxb4 {[%clk
00:00:10]} {[%emt 00:00:05]} Rxb4 {[%clk 00:01:02]} {[%emt 00:00:01]} 34. Rc4
{[%clk 00:00:11]} Rxc4 {[%clk 00:00:41]} {[%emt 00:00:25]} 35. bxc4 {[%clk
00:00:12]} Kf7 {[%clk 00:00:39]} {[%emt 00:00:03]} 36. Kg3 {[%clk 00:00:11]}
{[%emt 00:00:04]} Ke8 {[%clk 00:00:39]} {[%emt 00:00:02]} 37. Kg4 {[%clk
00:00:11]} {[%emt 00:00:01]} Kd7 {[%clk 00:00:37]} {[%emt 00:00:04]} 38. gxf6
{[%clk 00:00:10]} {[%emt 00:00:03]} Bxf6 {[%clk 00:00:38]} {[%emt 00:00:02]} 39.
Ng5 {[%clk 00:00:09]} {[%emt 00:00:03]} h6 {[%clk 00:00:33]} {[%emt 00:00:07]}
40. Ne6 {[%clk 00:00:09]} {[%emt 00:00:02]} Kc8 {[%clk 00:00:32]} {[%emt
00:00:02]} 41. Kh5 {[%clk 00:00:08]} {[%emt 00:00:04]} Kb7 {[%clk 00:00:07]}
{[%emt 00:00:26]} 42. Kg6 {[%clk 00:00:09]} {[%emt 00:00:01]} Bxh4 {[%clk
00:00:08]} {[%emt 00:00:02]} 43. Nxg7 {[%clk 00:00:09]} {[%emt 00:00:01]} Bg5
{[%clk 00:00:05]} {[%emt 00:00:04]} 44. Ne6 {[%clk 00:00:09]} {[%emt 00:00:03]}
Bh4 {[%clk 00:00:00]} {[%emt 00:00:05]} 45. Kxh6 {[%clk 00:00:09]} {[%emt
00:00:02]} Kb6 {[%clk 00:00:00]} 46. Kg6 {[%clk 00:00:09]} {[%emt 00:00:03]}
Ka5 {[%clk 00:00:00]} {[%emt 00:00:01]} 47. f6 {[%clk 00:00:09]} {[%emt
00:00:01]} Bxf6 {[%clk 00:00:00]} 48. Kxf6 {[%clk 00:00:09]} Kb4 {[%clk
00:00:00]} 49. Ke7 {[%clk 00:00:09]} {[%emt 00:00:05]} Kxc4 {[%clk 00:00:00]}
{[%emt 00:00:02]} 50. Kxd6 {[%clk 00:00:09]} 1-0

[Event "MČR v bleskovém šachu družstev 2019"]
[Site "Teplice, Czech Republic"]
[Date "2019.09.14"]
[Round "12.25"]
[White "Novotny, Michal"]
[Black "Vojta, Tomas"]
[Result "1-0"]
[TimeControl "3 mim. + 2 s"]
[WhiteTitle "FM"]
[BlackTitle "FM"]
[WhiteFideId "310980"]
[BlackFideId "308781"]
[WhiteElo "2299"]
[BlackElo "2353"]

1. d4 {[%clk 00:03:02]} {[%emt 00:00:02]} d5 {[%clk 00:03:04]} 2. Nf3 {[%clk
00:03:02]} {[%emt 00:00:02]} Nf6 {[%clk 00:03:05]} {[%emt 00:00:01]} 3. e3
{[%clk 00:03:04]} Bg4 {[%clk 00:03:05]} {[%emt 00:00:01]} 4. c4 {[%clk
00:03:05]} {[%emt 00:00:02]} dxc4 {[%clk 00:03:04]} {[%emt 00:00:02]} 5. Bxc4
{[%clk 00:03:05]} {[%emt 00:00:02]} e6 {[%clk 00:03:02]} {[%emt 00:00:05]} 6.
Qb3 {[%clk 00:02:55]} {[%emt 00:00:11]} Bxf3 7. gxf3 {[%clk 00:02:56]} Nbd7
{[%clk 00:03:03]} {[%emt 00:00:01]} 8. Rg1 {[%clk 00:02:52]} {[%emt 00:00:05]}
Nb6 {[%clk 00:03:01]} {[%emt 00:00:05]} 9. Be2 {[%clk 00:02:52]} {[%emt
00:00:01]} g6 {[%clk 00:02:55]} {[%emt 00:00:08]} 10. a4 {[%clk 00:02:32]}
{[%emt 00:00:22]} Bg7 {[%clk 00:02:45]} {[%emt 00:00:12]} 11. a5 {[%clk
00:02:33]} {[%emt 00:00:01]} Nbd5 {[%clk 00:02:46]} 12. Qxb7 {[%clk 00:02:16]}
{[%emt 00:00:19]} O-O {[%clk 00:02:47]} {[%emt 00:00:02]} 13. Nc3 {[%clk
00:01:44]} {[%emt 00:00:33]} c5 {[%clk 00:02:36]} {[%emt 00:00:14]} 14. dxc5
{[%clk 00:01:32]} {[%emt 00:00:13]} Rb8 {[%clk 00:02:21]} {[%emt 00:00:17]} 15.
Qxa7 {[%clk 00:01:27]} {[%emt 00:00:08]} Nb4 {[%clk 00:02:22]} 16. Kf1 {[%clk
00:01:23]} {[%emt 00:00:05]} Nfd5 {[%clk 00:02:21]} {[%emt 00:00:03]} 17. Nxd5
{[%clk 00:01:14]} {[%emt 00:00:12]} Qxd5 {[%clk 00:02:20]} {[%emt 00:00:03]} 18.
Kg2 {[%clk 00:00:59]} {[%emt 00:00:15]} Rb7 {[%clk 00:02:10]} {[%emt 00:00:12]}
19. Qb6 {[%clk 00:00:22]} {[%emt 00:00:41]} Rxb6 {[%clk 00:02:10]} {[%emt
00:00:02]} 20. cxb6 {[%clk 00:00:19]} {[%emt 00:00:05]} Qb7 {[%clk 00:01:28]}
{[%emt 00:00:44]} 21. Ra4 {[%clk 00:00:20]} {[%emt 00:00:01]} Na6 {[%clk
00:01:28]} {[%emt 00:00:02]} 22. b4 {[%clk 00:00:19]} {[%emt 00:00:03]} Rc8
{[%clk 00:01:22]} {[%emt 00:00:07]} 23. e4 {[%clk 00:00:20]} {[%emt 00:00:02]}
Bc3 {[%clk 00:01:15]} {[%emt 00:00:08]} 24. b5 {[%clk 00:00:16]} {[%emt
00:00:06]} Nc5 {[%clk 00:01:11]} {[%emt 00:00:06]} 25. Ra2 {[%clk 00:00:14]}
{[%emt 00:00:05]} Ra8 {[%clk 00:00:57]} {[%emt 00:00:16]} 26. Be3 {[%clk
00:00:15]} Nb3 {[%clk 00:00:48]} {[%emt 00:00:11]} 27. a6 {[%clk 00:00:16]}
{[%emt 00:00:01]} Qb8 {[%clk 00:00:27]} {[%emt 00:00:23]} 28. b7 {[%clk
00:00:17]} Bd4 {[%clk 00:00:18]} {[%emt 00:00:11]} 29. bxa8=Q Qxa8 30. b6
{[%clk 00:00:08]} {[%emt 00:00:08]} Bxe3 {[%clk 00:00:12]} {[%emt 00:00:08]} 31.
fxe3 {[%clk 00:00:09]} {[%emt 00:00:01]} Nc5 {[%clk 00:00:13]} 32. Rc1 {[%clk
00:00:08]} {[%emt 00:00:03]} Nd7 {[%clk 00:00:06]} {[%emt 00:00:09]} 33. b7
{[%clk 00:00:09]} {[%emt 00:00:01]} Qa7 {[%clk 00:00:06]} {[%emt 00:00:02]} 34.
Kf2 {[%clk 00:00:10]} Nb6 {[%clk 00:00:06]} {[%emt 00:00:03]} 35. Rc6 {[%clk
00:00:10]} Nd7 {[%clk 00:00:06]} {[%emt 00:00:02]} 36. Rc8+ {[%clk 00:00:12]}
Kg7 {[%clk 00:00:07]} 37. Ra8 {[%clk 00:00:12]} {[%emt 00:00:03]} Qc5 {[%clk
00:00:04]} {[%emt 00:00:05]} 38. a7 {[%clk 00:00:12]} {[%emt 00:00:02]} Qg5
{[%clk 00:00:03]} {[%emt 00:00:02]} 39. b8=Q {[%clk 00:00:13]} {[%emt
00:00:02]} Nxb8 {[%clk 00:00:04]} {[%emt 00:00:01]} 40. axb8=Q {[%clk
00:00:12]} {[%emt 00:00:02]} Qh4+ {[%clk 00:00:05]} {[%emt 00:00:01]} 41. Qg3
{[%clk 00:00:13]} {[%emt 00:00:01]} Qh5 {[%clk 00:00:05]} {[%emt 00:00:02]} 42.
R2a5 {[%clk 00:00:14]} {[%emt 00:00:02]} Qh6 {[%clk 00:00:05]} {[%emt
00:00:02]} 43. R8a7 {[%clk 00:00:14]} {[%emt 00:00:02]} 1-0